[Event "23rd Pirc Memorial Juniors 202"]
[Site "Maribor"]
[Date "2020.08.16"]
[Round "9.4"]
[White "Kodric, Gasper"]
[Black "Guid, Taja"]
[Result "1/2-1/2"]
[ECO "A13"]
[WhiteElo "1624"]
[BlackElo "1705"]
[Annotator "NA"]
[PlyCount "69"]
[EventDate "2020.08.12"]
[EventType "tourn"]
[EventCountry "SLO"]
[SourceTitle "playchess.com"]
[Source "ChessBase"]
[SourceQuality "1"]
[TimeControl "3600+30"]

1. c4 {[%emt 0:00:00]} e6 {[%emt 0:00:00]} 2. g3 {[%emt 0:00:09]} d5 {[%emt 0:00:00]} 3. Bg2 {[%emt 0:00:07]} Nf6 {[%emt 0:00:00]} 4. Nf3 {[%emt 0:00:05]} Bd6 {[%emt 0:02:00]} 5. O-O {[%emt 0:00:27]} O-O {[%emt 0:00:24]} 6. b3 {[%emt 0:01:21]} b6 {[%emt 0:03:30]} 7. Bb2 {[%emt 0:02:05]} Bb7 {[%emt 0:00:17]} 8. Nc3 {[%emt 0:01:27]} Nbd7 {[%emt 0:02:41]} 9. e3 {[%emt 0:01:27]} a6 {[%emt 0:03:18]} 10. Qe2 {[%emt 0:01:45]} c5 {[%emt 0:01:09]} 11. cxd5 {[%emt 0:00:36]} exd5 {[%emt 0:00:50]} 12. d4 {[%emt 0:00:07]} Re8 {[%emt 0:01:15]} 13. Rac1 {[%emt 0:01:17]} Rc8 {[%emt 0:01:04]} 14. Rfd1 {[%emt 0:01:37]} Qe7 {[%emt 0:02:01]} 15. a4 {[%emt 0:13:46]} c4 {[%emt 0:13:49]} 16. bxc4 {[%emt 0:02:47]} dxc4 {[%emt 0:00:05]} 17. Nd2 {[%emt 0:07:46]} Bxg2 {[%emt 0:00:27]} 18. Kxg2 {[%emt 0:00:06]} Qe6 {[%emt 0:01:00]} 19. e4 {[%emt 0:05:33]} Bb4 {[%emt 0:01:01]} 20. d5 {[%emt 0:02:21]} Qe7 {[%emt 0:13:33]} 21. Nxc4 {[%emt 0:09:33]} Nxe4 {[%emt 0:00:55]} 22. Qxe4 {[%emt 0:02:18]} Qxe4+ {[%emt 0:00:25]} 23. Nxe4 {[%emt 0:00:06]} Rxe4 {[%emt 0:00:06]} 24. Ne3 {[%emt 0:04:28]} Ree8 {[%emt 0:00:51]} 25. Nf5 {[%emt 0:02:32]} f6 {[%emt 0:01:39]} 26. Nd4 {[%emt 0:03:01]} Ne5 {[%emt 0:03:58]} 27. Nc6 {[%emt 0:01:25]} Nxc6 {[%emt 0:03:08]} 28. dxc6 {[%emt 0:00:16]} Bc5 {[%emt 0:02:43]} 29. a5 {[%emt 0:00:46]} Rxc6 {[%emt 0:00:47]} 30. axb6 {[%emt 0:00:10]} Rxb6 {[%emt 0:01:08]} 31. Rxc5 {[%emt 0:02:10]} Rxb2 {[%emt 0:00:05]} 32. Rd7 {[%emt 0:00:56]} Kh8 {[%emt 0:02:12]} 33. Rcc7 {[%emt 0:00:33]} Rg8 {[%emt 0:00:10]} 34. h4 {[%emt 0:00:55]} h6 {[%emt 0:00:49]} 35. Ra7 {[%emt 0:01:38]} 1/2-1/2

[Event "23rd Pirc Memorial Juniors 202"]
[Site "Maribor"]
[Date "2020.08.16"]
[Round "9.5"]
[White "Heric, Meta"]
[Black "Drevensek, Doroteja"]
[Result "1/2-1/2"]
[ECO "C48"]
[WhiteElo "1287"]
[BlackElo "1381"]
[Annotator "NA"]
[PlyCount "65"]
[EventDate "2020.08.12"]
[EventType "tourn"]
[EventCountry "SLO"]
[SourceTitle "playchess.com"]
[Source "ChessBase"]
[SourceQuality "1"]
[TimeControl "3600+30"]

1. e4 {[%emt 0:00:00]} e5 {[%emt 0:00:00]} 2. Nf3 {[%emt 0:00:00]} Nc6 {[%emt 0:00:00]} 3. Nc3 {[%emt 0:00:00]} Nf6 {[%emt 0:00:00]} 4. Bb5 {[%emt 0:00:13]} Bd6 {[%emt 0:00:04]} 5. d4 {[%emt 0:12:07]} exd4 {[%emt 0:08:23]} 6. Nxd4 {[%emt 0:00:31]} Nxd4 {[%emt 0:01:01]} 7. Qxd4 {[%emt 0:00:23]} Qe7 {[%emt 0:00:49]} 8. Bg5 {[%emt 0:20:06]} Be5 {[%emt 0:02:36]} 9. Bxf6 {[%emt 0:13:41]} Bxf6 {[%emt 0:01:45]} 10. Qe3 {[%emt 0:01:31]} c6 {[%emt 0:11:31]} 11. Be2 {[%emt 0:06:01]} O-O {[%emt 0:07:27]} 12. O-O {[%emt 0:00:54]} Re8 {[%emt 0:02:36]} 13. Bf3 {[%emt 0:02:53]} Qb4 {[%emt 0:04:40]} 14. Rab1 {[%emt 0:01:26]} d5 {[%emt 0:02:17]} 15. a3 {[%emt 0:01:53]} Qf8 {[%emt 0:08:36]} 16. Qd3 {[%emt 0:01:36]} d4 {[%emt 0:08:08]} 17. Ne2 {[%emt 0:00:30]} Qc5 {[%emt 0:02:35]} 18. b4 {[%emt 0:00:40]} Qb6 {[%emt 0:00:44]} 19. Ng3 {[%emt 0:00:50]} Be6 {[%emt 0:01:30]} 20. Nh5 {[%emt 0:01:00]} Qd8 {[%emt 0:01:20]} 21. Nxf6+ {[%emt 0:00:04]} Qxf6 {[%emt 0:00:04]} 22. Rfd1 {[%emt 0:00:36]} Rad8 {[%emt 0:01:11]} 23. Qe2 {[%emt 0:00:27]} b6 {[%emt 0:02:11]} 24. e5 {[%emt 0:00:17]} Qg5 {[%emt 0:01:14]} 25. Bxc6 {[%emt 0:00:29]} Bg4 {[%emt 0:00:29]} 26. Qd3 {[%emt 0:01:49]} Bxd1 {[%emt 0:00:47]} 27. Bxe8 {[%emt 0:00:04]} Rxe8 {[%emt 0:00:44]} 28. Rxd1 {[%emt 0:00:02]} Qxe5 {[%emt 0:00:04]} 29. Qd2 {[%emt 0:00:46]} h6 {[%emt 0:00:48]} 30. h3 {[%emt 0:00:15]} Qe2 {[%emt 0:00:45]} 31. Qxe2 {[%emt 0:00:12]} Rxe2 {[%emt 0:00:02]} 32. Rxd4 {[%emt 0:00:19]} Rxc2 {[%emt 0:00:02]} 33. Rd7 {[%emt 0:00:24]} 1/2-1/2